bitfinex/quotes_BTCUSD_20251124
["timestamp","ask_amount","ask_price","bid_price","bid_amount"]
[1763958418561,0.03697,86647.0,86637.0,0.03648]
[1763958418920,0.08824,86647.0,86637.0,0.010848]
[1763958419045,0.323,86648.0,86630.0,0.03648]
[1763958419243,0.03471537,86646.0,86631.0,0.072]
[1763958419457,0.94332406,86641.0,86630.0,0.03648]
[1763958419663,0.323,86640.0,86637.0,0.00079254]
[1763958420026,0.323,86640.0,86630.0,0.03648]
[1763958420027,0.323,86640.0,86631.0,0.072]
[1763958420229,0.323,86640.0,86639.0,0.04947]
[1763958420653,0.03471537,86646.0,86630.0,0.042791]
[1763958420854,0.03471537,86646.0,86610.0,0.0002]
[1763958420855,0.03471537,86646.0,86629.0,0.072]
[1763958421074,0.03471537,86646.0,86630.0,0.17882578]
[1763958421205,0.323,86659.0,86645.0,0.08167]
[1763958421405,0.0347138,86653.0,86645.0,0.08167]
[1763958421806,0.323,86657.0,86645.0,0.08167]
[1763958422064,0.323,86653.0,86645.0,0.08167]
[1763958422237,0.323,86653.0,86645.0,0.0322]
[1763958422853,0.323,86653.0,86652.0,0.04947]
[1763958423017,0.12196181,86669.0,86652.0,0.04947]
[1763958423018,2.0,86668.0,86652.0,0.04947]
[1763958423199,0.03470649,86667.0,86657.0,0.04947]
[1763958423421,0.323,86665.0,86657.0,0.04947]
[1763958423618,0.323,86665.0,86659.0,0.09696278]
[1763958423822,2.0,86672.0,86664.0,0.0483]
[1763958424025,2.0,86672.0,86670.0,0.0483]
[1763958424228,1.76632406,86690.0,86671.0,0.15119]
[1763958424509,0.03470304,86679.0,86672.0,0.063419]
[1763958424676,0.08452723,86685.0,86672.0,0.139679]
[1763958425036,0.07866,86698.0,86672.0,0.139679]
[1763958425037,0.03469898,86688.0,86684.0,0.0483]
[1763958425243,0.03886,86708.0,86687.0,0.12916278]
[1763958425244,0.0875991,86706.0,86687.0,0.12916278]
[1763958425362,0.02106563,86705.0,86692.0,0.0483]
[1763958425566,0.323,86703.0,86692.0,0.0483]
[1763958425749,0.02106563,86702.0,86693.0,0.07626]
[1763958425965,0.01810963,86710.0,86701.0,0.09696278]
[1763958426168,0.01810963,86710.0,86709.0,0.0483]
[1763958426390,0.01810963,86710.0,86694.0,0.015119]
[1763958426597,0.323,86709.0,86694.0,0.015119]
[1763958427015,0.96143369,86710.0,86660.0,0.94332406]
[1763958427016,0.323,86701.0,86687.0,0.0322]
[1763958427217,0.01810963,86710.0,86687.0,0.0322]
[1763958427218,0.323,86709.0,86690.0,0.09696278]
[1763958427445,0.323,86707.0,86690.0,0.09696278]
[1763958427648,0.323,86707.0,86693.0,0.001]
[1763958428028,0.323,86707.0,86693.0,0.07626]
[1763958428571,0.323,86707.0,86706.0,0.0483]
[1763958428774,0.01172135,86715.0,86706.0,0.0483]
[1763958429023,0.01172135,86715.0,86705.0,0.09696278]
[1763958429024,0.01172135,86715.0,86711.0,0.0483]
[1763958429196,0.95485276,86740.0,86711.0,0.0483]
[1763958429197,0.03468462,86728.0,86711.0,0.0483]
[1763958429369,0.00603197,86736.0,86711.0,0.12456]
[1763958429770,0.0138862,86715.0,86711.0,0.12456]
[1763958430339,0.03886,86732.0,86711.0,0.0483]
[1763958430340,0.0024628,86712.0,86711.0,0.0483]
[1763958430509,0.0024628,86712.0,86711.0,0.12456]
[1763958431287,0.0024628,86712.0,86706.0,0.002]
[1763958431490,0.0024628,86712.0,86696.0,0.07626]
[1763958431698,0.323,86709.0,86690.0,0.09696278]
[1763958432056,0.323,86709.0,86691.0,0.08917628]
[1763958432385,0.323,86709.0,86708.0,0.0483]
[1763958432794,0.0024628,86712.0,86708.0,0.12456]
[1763958432995,0.0024628,86712.0,86711.0,0.0483]
[1763958433235,0.0024628,86712.0,86711.0,0.14152499]
[1763958433659,0.0024628,86712.0,86699.0,0.07626]
[1763958433816,0.0024628,86712.0,86711.0,0.0483]
[1763958434233,0.0024628,86712.0,86711.0,0.12456]
[1763958434861,0.0024628,86712.0,86711.0,0.12556]
[1763958435285,0.0024628,86712.0,86711.0,0.12456]
[1763958435483,0.0024628,86712.0,86711.0,0.0503]
[1763958435882,0.0024628,86712.0,86704.0,0.09696278]
[1763958436347,0.0024628,86712.0,86711.0,0.0483]
[1763958436744,0.0024628,86712.0,86711.0,0.12556]
[1763958437183,0.0024628,86712.0,86711.0,0.003]
[1763958437496,0.0024628,86712.0,86711.0,0.001]
[1763958437816,0.0024628,86712.0,86711.0,0.002]
[1763958438247,0.0024628,86712.0,86711.0,0.12656]
[1763958438652,0.0024628,86712.0,86711.0,0.002]
[1763958439256,0.0024628,86712.0,86711.0,0.12656]
[1763958439515,0.0024628,86712.0,86711.0,0.001]
[1763958440084,0.0024628,86712.0,86711.0,0.0483]
[1763958440371,0.0024628,86712.0,86711.0,0.12456]
[1763958440571,0.0024628,86712.0,86711.0,0.138016]
[1763958440779,0.0024628,86712.0,86711.0,0.137016]
[1763958441206,0.0024628,86712.0,86711.0,0.138016]
[1763958442083,0.01390623,86747.0,86711.0,0.147996]
[1763958442286,0.0001182,86747.0,86739.0,0.09696278]
[1763958442435,0.0001182,86747.0,86746.0,0.07889]
[1763958442845,0.0001182,86747.0,86746.0,0.15515]
[1763958443226,0.00122592,86747.0,86746.0,0.15515]
[1763958444012,0.00122592,86747.0,86746.0,0.15715]
[1763958444478,0.00122592,86747.0,86746.0,0.08089]
[1763958444685,0.00122592,86747.0,86746.0,0.03359]
[1763958445114,0.00122592,86747.0,86746.0,0.003]
[1763958445299,0.00122592,86747.0,86746.0,0.002]
[1763958445509,0.00122592,86747.0,86746.0,0.003]
[1763958445710,0.32422592,86747.0,86746.0,0.003]
[1763958445915,0.34521052,86747.0,86746.0,0.003]
[1763958446119,0.32422592,86747.0,86746.0,0.002]
[1763958446317,0.323,86746.0,86745.0,0.03059]
[1763958446902,0.323,86746.0,86745.0,0.15515]
[1763958447103,0.323,86746.0,86745.0,0.170665]
[1763958447263,0.0001182,86747.0,86745.0,0.170665]
[1763958447480,0.0001182,86747.0,86746.0,0.14526278]
[1763958447676,0.0001182,86747.0,86746.0,0.22152278]
[1763958448513,0.0001182,86747.0,86746.0,0.22252278]
[1763958448760,0.0001182,86747.0,86746.0,0.23688905]
[1763958448961,0.0001182,86747.0,86746.0,0.23588905]
[1763958449161,0.0138459,86763.0,86746.0,0.23688905]
[1763958449369,0.0315146,86762.0,86747.0,0.07626]
[1763958449583,0.02101064,86761.0,86747.0,0.07626]
[1763958449839,0.02101064,86760.0,86748.0,0.015515]
[1763958450046,0.02101064,86759.0,86748.0,0.015515]
[1763958450307,0.02101064,86758.0,86749.0,0.07626]
[1763958450455,0.02101064,86757.0,86745.0,0.03059]
[1763958450659,0.02101064,86756.0,86749.0,0.09696278]
[1763958450843,6.809e-05,86763.0,86750.0,0.09696278]
[1763958450844,0.02101064,86755.0,86750.0,0.09696278]
[1763958451043,0.02101064,86754.0,86745.0,0.03059]
[1763958451301,0.02101064,86753.0,86745.0,0.03059]
[1763958451505,0.02101064,86752.0,86746.0,0.010685]
[1763958451708,0.02101064,86751.0,86746.0,0.010685]
[1763958451909,6.809e-05,86763.0,86746.0,0.010685]
[1763958451910,0.02101064,86750.0,86749.0,0.09696278]
[1763958452133,2.0,86761.0,86750.0,0.001]
[1763958452289,0.02102178,86760.0,86750.0,0.001]
[1763958452491,0.02102178,86760.0,86749.0,0.22152278]
[1763958452492,0.00123426,86751.0,86749.0,0.09696278]
[1763958452701,0.02102178,86750.0,86749.0,0.09796278]
[1763958453049,0.02102178,86750.0,86749.0,0.22152278]
[1763958453256,0.02102178,86762.0,86749.0,0.22152278]
[1763958453387,6.809e-05,86763.0,86750.0,0.07626]
[1763958453388,0.03155041,86761.0,86750.0,0.07626]
[1763958453586,0.0315857,86760.0,86750.0,0.07626]
[1763958453822,0.0315857,86759.0,86750.0,0.07626]
[1763958454027,0.0315857,86758.0,86750.0,0.07626]
[1763958454310,0.0315857,86757.0,86750.0,0.07626]
[1763958454424,0.323,86755.0,86746.0,0.001]
[1763958454626,0.323,86755.0,86745.0,0.03059]
[1763958454627,0.0315857,86754.0,86745.0,0.03059]
[1763958454877,0.0315857,86753.0,86745.0,0.03059]
[1763958455077,0.0315857,86752.0,86745.0,0.03059]
[1763958455280,0.8853151,86755.0,86749.0,0.001]
[1763958455281,0.323,86750.0,86749.0,0.001]
[1763958455516,2.3545857,86750.0,86749.0,0.002]
[1763958455718,2.3545857,86750.0,86706.0,0.03059]
[1763958455719,0.01153096,86723.0,86706.0,0.03059]
[1763958455834,0.323,86715.0,86706.0,0.03059]
[1763958456032,0.0670757,86714.0,86706.0,0.03059]
[1763958456262,0.0315857,86713.0,86706.0,0.03059]
[1763958456478,0.0315857,86712.0,86706.0,0.03059]
[1763958456683,0.0315857,86711.0,86706.0,0.03059]
[1763958456879,0.03549,86714.0,86706.0,0.0307082]
[1763958456880,0.0315857,86710.0,86706.0,0.0307082]
[1763958457087,0.0315857,86709.0,86706.0,0.0307082]
[1763958457282,0.0315857,86708.0,86706.0,0.0317082]
[1763958457503,0.0315857,86707.0,86706.0,0.0317082]
[1763958457928,0.0315857,86707.0,86706.0,0.1563482]
[1763958458146,0.02105707,86707.0,86706.0,0.17198302]
[1763958458362,0.03159119,86707.0,86706.0,0.17198302]
[1763958458564,0.03159119,86707.0,86706.0,0.17098302]
[1763958458965,0.02105707,86707.0,86706.0,0.17098302]
[1763958459138,0.02105707,86707.0,86706.0,0.17198302]
[1763958459565,0.02105707,86707.0,86706.0,0.17098302]
[1763958459747,0.02105707,86707.0,86706.0,0.17198302]
[1763958460878,0.02105707,86707.0,86706.0,0.1563482]
[1763958463702,0.02105707,86719.0,86706.0,0.1563482]
[1763958463930,0.00025327,86720.0,86719.0,0.04938]
[1763958464140,0.02133759,86720.0,86719.0,0.07244299]
[1763958464426,0.02133759,86720.0,86719.0,0.16024357]
[1763958465544,0.02133759,86720.0,86719.0,0.16224357]
[1763958465747,0.02133759,86720.0,86719.0,0.16124357]
[1763958466188,0.02133759,86720.0,86719.0,0.12324]
[1763958466435,0.02133759,86720.0,86719.0,0.14427654]
[1763958466639,0.323,86739.0,86719.0,0.13638316]
[1763958466840,0.323,86739.0,86738.0,0.04938]
[1763958467041,0.33354968,86739.0,86738.0,0.04938]
[1763958467199,0.01054968,86739.0,86738.0,0.16397428]
[1763958467372,0.323,86756.0,86738.0,0.16397428]
[1763958467568,2.0,86757.0,86738.0,0.16397428]
[1763958467569,0.323,86752.0,86738.0,0.09311428]
[1763958467790,0.01809425,86757.0,86738.0,0.09311428]
[1763958467791,0.323,86749.0,86739.0,0.07086]
[1763958468100,0.323,86747.0,86740.0,0.01524699]
[1763958468302,0.01055096,86746.0,86740.0,0.01524699]
[1763958469087,0.01055096,86745.0,86740.0,0.01524699]
[1763958469294,0.01055096,86744.0,86740.0,0.01524699]
[1763958469496,0.01055096,86743.0,86740.0,0.01624699]
[1763958469816,0.323,86749.0,86741.0,0.17934348]
[1763958469817,0.01055096,86742.0,86741.0,0.17934348]
[1763958470172,0.01055096,86748.0,86741.0,0.17934348]
[1763958470379,0.01055096,86747.0,86742.0,0.07086]
[1763958470559,2.0,86767.0,86747.0,0.04938]
[1763958470762,2.0,86767.0,86743.0,0.02433]
[1763958470763,2.0,86765.0,86759.0,0.04938]
[1763958470910,0.33355761,86764.0,86759.0,0.04938]
[1763958471253,0.00602903,86775.0,86760.0,0.08549428]
[1763958471254,0.01055761,86763.0,86760.0,0.08549428]
[1763958471527,0.01055761,86762.0,86760.0,0.08549428]
[1763958471930,0.00011809,86763.0,86762.0,0.04938]
[1763958472113,0.00011809,86763.0,86762.0,0.12024]
[1763958472301,0.00011809,86763.0,86762.0,0.13548699]
[1763958473778,0.00011809,86763.0,86762.0,0.13648699]
[1763958474205,0.00147869,86763.0,86762.0,0.13648699]
[1763958474400,0.00147869,86763.0,86762.0,0.13548699]
[1763958474599,0.00147869,86763.0,86762.0,0.13648699]
[1763958475031,0.00147869,86763.0,86762.0,0.13848699]
[1763958475261,0.00147869,86763.0,86762.0,0.12224]
[1763958475542,0.00147869,86763.0,86762.0,0.001]
[1763958475719,0.00147869,86763.0,86762.0,0.003]
[1763958476106,0.00147869,86763.0,86762.0,0.12324]
[1763958476725,0.00147869,86763.0,86762.0,0.12224]
[1763958477105,0.00147869,86763.0,86762.0,0.12324]
[1763958477505,0.00147869,86763.0,86762.0,0.12124]
[1763958477950,0.00147869,86763.0,86762.0,0.12224]
[1763958478658,0.00147869,86763.0,86762.0,0.05138]
[1763958478833,0.00147869,86763.0,86762.0,0.002]
[1763958479292,0.323,86771.0,86762.0,0.002]
[1763958479293,0.16087,86771.0,86762.0,0.07286]
[1763958479489,0.0004,86790.0,86762.0,0.07286]
[1763958479912,0.0004,86790.0,86762.0,0.07186]
[1763958480229,0.0342,86783.0,86762.0,0.002]
[1763958480446,0.0342,86783.0,86763.0,0.01295528]
[1763958480641,0.0342,86783.0,86762.0,0.001]
[1763958480642,0.0342,86763.0,86762.0,0.001]
[1763958480852,0.0342,86763.0,86710.0,0.25218553]
[1763958480853,0.08008,86763.0,86702.0,0.09696278]
[1763958481059,2.0342,86763.0,86762.0,0.002]
[1763958481265,0.02107604,86763.0,86762.0,0.001]
[1763958481416,0.323,86771.0,86762.0,0.001]
[1763958481631,0.323,86771.0,86763.0,0.001]
[1763958481632,0.02107782,86770.0,86763.0,0.001]
[1763958481844,0.323,86771.0,86763.0,0.001]
[1763958482009,0.323,86771.0,86743.0,0.0231747]
[1763958482205,0.323,86771.0,86756.0,0.09696278]
[1763958482629,0.0342,86775.0,86757.0,0.02305289]
[1763958482630,0.323,86773.0,86757.0,0.02305289]
[1763958482830,0.323,86771.0,86757.0,0.02305289]
[1763958483516,0.323,86771.0,86757.0,0.02150512]
[1763958483714,0.0004,86780.0,86770.0,0.09696278]
[1763958484790,0.0004,86780.0,86758.0,0.01184679]
[1763958484791,0.323,86779.0,86758.0,0.01184679]
[1763958485118,0.323,86779.0,86770.0,0.09796278]
[1763958485440,0.323,86779.0,86771.0,0.00979628]
[1763958485823,0.0004,86780.0,86756.0,0.09696278]
[1763958485824,0.03516,86772.0,86756.0,0.09696278]
[1763958486030,0.323,86769.0,86756.0,0.09696278]
[1763958487431,0.323,86769.0,86740.0,0.09696278]
[1763958487579,0.323,86769.0,86754.0,0.09696278]
[1763958487750,0.323,86769.0,86756.0,0.001]
[1763958487957,0.323,86769.0,86755.0,0.00969628]
[1763958488491,0.00025305,86771.0,86756.0,0.02305316]
[1763958489197,0.00025305,86771.0,86770.0,0.09696278]
[1763958491602,0.18404941,86805.0,86770.0,0.09696278]
[1763958491603,0.323,86797.0,86770.0,0.09796278]
[1763958491801,0.323,86797.0,86771.0,0.01155328]
[1763958491802,0.323,86790.0,86771.0,0.01155328]
[1763958491998,0.02112714,86789.0,86771.0,0.01155328]
[1763958492181,0.00025302,86779.0,86772.0,0.01757]
[1763958493023,0.00025302,86779.0,86778.0,0.01757]
[1763958493761,0.00025302,86779.0,86771.0,0.01155328]
[1763958493914,0.00025302,86779.0,86772.0,0.01270861]
[1763958494117,0.00025302,86779.0,86778.0,0.01757]
[1763958494325,0.00025302,86779.0,86778.0,0.01857]
[1763958494532,0.00025302,86779.0,86772.0,0.01270861]
[1763958494711,0.00025302,86779.0,86740.0,1.0585055]
[1763958494712,0.323,86778.0,86761.0,0.01757]
[1763958494913,0.323,86778.0,86771.0,0.001]
[1763958495219,0.323,86778.0,86772.0,0.001]
[1763958495220,0.069,86777.0,86772.0,0.001]
[1763958495424,0.04881,86773.0,86740.0,0.09696278]
[1763958495626,0.323,86769.0,86744.0,0.01757]
[1763958495868,0.323,86769.0,86723.0,0.00200416]
[1763958495869,0.323,86763.0,86761.0,0.001]
[1763958496007,0.49714407,86762.0,86761.0,0.001]
[1763958496649,0.49699114,86762.0,86761.0,0.001]
[1763958496862,2.50757971,86762.0,86761.0,0.001]
[1763958497068,0.01152644,86757.0,86732.0,0.01757]
[1763958497271,0.323,86749.0,86732.0,0.01768809]
[1763958498013,0.392,86749.0,86732.0,0.01768809]
[1763958498362,0.04768578,86762.0,86733.0,0.11453278]
[1763958498363,2.323,86759.0,86733.0,0.11453278]
[1763958498568,0.323,86756.0,86734.0,0.03628109]
[1763958498774,0.51058857,86758.0,86732.0,0.00011809]
[1763958498775,0.04881,86734.0,86732.0,0.00011809]
[1763958498982,0.04881,86733.0,86732.0,0.00011809]
[1763958499381,0.069,86740.0,86732.0,0.00011809]
[1763958499382,0.323,86739.0,86732.0,0.00011809]
[1763958499585,0.03516,86741.0,86732.0,0.00011809]
[1763958499763,0.323,86746.0,86732.0,0.00011809]
[1763958499978,0.53516,86748.0,86732.0,0.00011809]
[1763958499979,1.26454274,86742.0,86732.0,0.00011809]
[1763958500179,0.323,86740.0,86732.0,0.00011809]
[1763958500403,0.323,86738.0,86732.0,0.00111809]
[1763958500608,0.323,86738.0,86732.0,0.00011809]
[1763958501440,0.04881,86733.0,86732.0,0.00111809]
[1763958501943,0.44081,86733.0,86732.0,0.00111809]
[1763958502102,0.44081,86733.0,86732.0,0.00211809]
[1763958502427,0.47597,86733.0,86732.0,0.00211809]
[1763958502582,0.47597,86733.0,86732.0,0.00111809]
[1763958502583,0.40697,86733.0,86732.0,0.00111809]
[1763958503022,0.40697,86733.0,86732.0,0.00211809]
[1763958503227,0.40697,86733.0,86732.0,0.00111809]
[1763958503639,2.47597,86733.0,86732.0,0.00111809]
[1763958503978,2.40697,86733.0,86732.0,0.00111809]
[1763958504280,0.323,86733.0,86732.0,0.00111809]
[1763958504705,0.323,86733.0,86732.0,0.01868809]
[1763958505731,0.03516,86748.0,86732.0,0.01868809]
[1763958505931,2.0,86747.0,86733.0,0.09696278]
[1763958506087,0.323,86744.0,86734.0,0.03462409]
[1763958506292,2.0,86747.0,86734.0,0.01156509]
[1763958506491,2.0,86747.0,86732.0,0.00111809]
[1763958506737,0.10416,86748.0,86733.0,0.09696278]
[1763958506738,0.323,86744.0,86733.0,0.09696278]
[1763958506940,0.323,86744.0,86734.0,0.02143613]
[1763958507298,2.0,86756.0,86734.0,0.02143613]
[1763958507503,0.323,86755.0,86734.0,0.02143613]
[1763958507754,0.069,86757.0,86735.0,0.0136087]
[1763958507755,2.0,86752.0,86735.0,0.0136087]
[1763958507953,0.323,86749.0,86736.0,0.02305847]
[1763958508158,2.0,86750.0,86732.0,0.00011809]
[1763958508159,0.08397,86737.0,86732.0,0.00011809]
[1763958508386,0.323,86745.0,86736.0,0.01757]
[1763958508514,0.323,86743.0,86736.0,0.01757]
[1763958508857,0.323,86743.0,86732.0,0.00011809]
[1763958509201,0.323,86743.0,86734.0,0.001]
[1763958509419,0.323,86743.0,86732.0,0.00011809]
[1763958509553,0.323,86746.0,86733.0,0.09696278]
[1763958509758,0.323,86749.0,86736.0,0.001]
[1763958509999,0.392,86749.0,86736.0,0.001]
[1763958510157,0.392,86749.0,86732.0,0.00011809]
[1763958510158,0.04881,86737.0,86732.0,0.00011809]
[1763958510362,0.03516,86733.0,86732.0,0.00011809]
[1763958511169,0.47597,86733.0,86732.0,0.00011809]
[1763958511379,0.35816,86733.0,86732.0,0.00011809]
[1763958511573,0.323,86733.0,86732.0,0.01188809]
[1763958511783,0.323,86733.0,86732.0,0.02365809]
[1763958512034,0.323,86733.0,86732.0,0.02465809]
[1763958512439,0.323,86733.0,86732.0,0.01288809]
[1763958513022,0.323,86733.0,86732.0,0.00111809]
[1763958513227,0.323,86733.0,86732.0,0.01288809]
[1763958513831,0.323,86733.0,86732.0,0.00111809]
[1763958514416,0.323,86733.0,86732.0,0.00211809]
[1763958514802,0.323,86733.0,86732.0,0.01388809]
[1763958515002,0.323,86733.0,86732.0,0.00211809]
[1763958516306,0.94154274,86742.0,86732.0,0.00211809]
[1763958517208,0.94154274,86742.0,86732.0,0.00111809]
[1763958517612,0.94154274,86742.0,86732.0,0.00211809]
[1763958518123,0.94154274,86742.0,86732.0,0.00111809]
[1763958518463,0.94154274,86742.0,86732.0,0.00211809]
[1763958518607,0.323,86749.0,86732.0,0.00211809]
[1763958518808,0.323,86749.0,86733.0,0.09696278]
[1763958519121,0.03516,86762.0,86733.0,0.09696278]
[1763958519122,0.94154274,86760.0,86748.0,0.01177]
[1763958519330,0.94154274,86760.0,86734.0,0.00990809]
[1763958519331,2.0,86759.0,86734.0,0.02167809]
[1763958519539,2.0,86759.0,86734.0,0.00990809]
[1763958519540,0.94154274,86744.0,86734.0,0.00990809]
[1763958519711,0.03516,86762.0,86732.0,0.00011809]
[1763958519712,0.94154274,86750.0,86732.0,0.00011809]
[1763958519920,0.94154274,86750.0,86733.0,0.09696278]
[1763958520328,2.0,86759.0,86733.0,0.10873278]
[1763958520738,2.0,86759.0,86734.0,0.02151299]
[1763958520930,0.06997,86758.0,86733.0,0.09696278]
[1763958521307,2.0,86757.0,86734.0,0.01088509]
[1763958521522,0.94154274,86750.0,86734.0,0.01088509]
[1763958521671,0.94154274,86744.0,86734.0,0.01088509]
[1763958521996,0.94154274,86744.0,86732.0,0.00011809]
[1763958522200,0.06997,86757.0,86732.0,0.00011809]
[1763958522498,0.94154274,86742.0,86732.0,0.00011809]
[1763958522695,0.323,86749.0,86732.0,0.00011809]
[1763958522897,0.03443,86744.0,86732.0,0.00011809]
[1763958524551,0.94154274,86742.0,86732.0,0.00011809]
[1763958525501,0.323,86741.0,86732.0,0.00011809]
[1763958526077,0.323,86741.0,86732.0,0.00211809]
[1763958526360,0.323,86741.0,86732.0,0.00011809]
[1763958526719,0.04733,86733.0,86732.0,0.00011809]
[1763958527113,0.43543,86733.0,86732.0,0.00011809]
[1763958527761,0.323,86733.0,86732.0,0.00011809]
[1763958527921,2.0,86741.0,86732.0,0.00011809]
[1763958528497,2.0,86739.0,86732.0,0.00011809]
[1763958528636,2.0,86739.0,86732.0,0.00211809]
[1763958528831,0.04733,86733.0,86732.0,0.00111809]
[1763958529039,0.11243,86733.0,86732.0,0.00111809]
[1763958529282,0.11243,86733.0,86732.0,0.00011809]
[1763958530462,0.04733,86733.0,86732.0,0.00011809]
[1763958530640,0.11243,86733.0,86732.0,0.00011809]
[1763958531425,0.11243,86733.0,86732.0,0.00111809]
[1763958531906,0.323,86738.0,86732.0,0.00111809]
[1763958532082,2.0,86737.0,86732.0,0.00111809]
[1763958532304,0.323,86738.0,86732.0,0.00111809]
[1763958532507,2.0,86737.0,86732.0,0.00111809]
[1763958532911,0.0651,86736.0,86732.0,0.00111809]
[1763958533212,0.323,86737.0,86732.0,0.00111809]
[1763958533812,0.323,86737.0,86732.0,0.00011809]
[1763958534574,2.0,86738.0,86732.0,0.00011809]
[1763958534772,0.323,86739.0,86736.0,0.01205]
[1763958535242,0.323,86739.0,86732.0,0.00011809]
[1763958535442,0.01205,86746.0,86732.0,0.00011809]
[1763958535691,0.323,86742.0,86732.0,0.00011809]
[1763958535858,0.02121502,86741.0,86732.0,0.00011809]
[1763958536041,0.02121502,86740.0,86732.0,0.00011809]
[1763958536240,0.323,86742.0,86741.0,0.01205]
[1763958536648,0.03314,86753.0,86741.0,0.01205]
[1763958536845,0.323,86750.0,86741.0,0.01205]
[1763958537045,0.02121512,86749.0,86742.0,0.01205]
[1763958538023,0.02121512,86748.0,86742.0,0.01205]
[1763958538266,0.02121512,86747.0,86742.0,0.01205]
[1763958538496,0.323,86756.0,86742.0,0.01205]
[1763958538708,0.323,86752.0,86742.0,0.01205]
[1763958538909,0.02121439,86751.0,86742.0,0.01205]
[1763958539139,0.02121439,86750.0,86742.0,0.01205]
[1763958539322,0.01809555,86763.0,86744.0,0.09696278]
[1763958539930,0.01809555,86763.0,86744.0,0.10901278]
[1763958540141,2.0,86764.0,86744.0,0.10901278]
[1763958540344,0.94154274,86770.0,86742.0,0.01205]
[1763958540345,0.94154274,86760.0,86742.0,0.01305]
[1763958540571,2.0,86753.0,86742.0,0.01205]
[1763958540769,0.02120994,86752.0,86742.0,0.01205]
[1763958540931,0.03314,86752.0,86742.0,0.01205]
[1763958542220,0.03314,86752.0,86742.0,0.001]
[1763958543038,0.03314,86752.0,86742.0,0.002]
[1763958544299,0.07774,86743.0,86742.0,0.002]
[1763958545170,0.07774,86743.0,86742.0,0.001]
[1763958545580,0.323,86746.0,86742.0,0.002]
[1763958545742,0.323,86751.0,86742.0,0.002]
[1763958545953,0.323,86747.0,86742.0,0.001]
[1763958546177,0.323,86749.0,86736.0,0.00984]
[1763958546178,0.323,86745.0,86736.0,0.00984]
[1763958546372,0.323,86745.0,86742.0,0.001]
[1763958546589,0.323,86745.0,86736.0,0.00984]
[1763958547206,0.94154274,86750.0,86736.0,0.00984]
[1763958547207,0.323,86749.0,86736.0,0.00984]
[1763958547351,0.94154274,86750.0,86736.0,0.00984]
[1763958547352,0.323,86747.0,86736.0,0.00984]
[1763958547548,0.323,86745.0,86736.0,0.00984]
[1763958548595,0.323,86749.0,86736.0,0.00984]
[1763958548782,0.323,86745.0,86736.0,0.00984]
[1763958550064,2.0,86748.0,86736.0,0.00984]
[1763958550222,0.323,86745.0,86736.0,0.00984]
[1763958551029,2.0,86749.0,86736.0,0.00984]
[1763958552373,0.94154274,86750.0,86736.0,0.00984]
[1763958552529,2.0,86749.0,86736.0,0.00984]
[1763958557798,0.323,86749.0,86737.0,0.09696278]
[1763958557996,0.03341,86758.0,86737.0,0.09696278]
[1763958557997,0.323,86759.0,86748.0,0.00984]
[1763958558195,0.03341,86766.0,86749.0,0.00984]
[1763958558401,0.06958,86770.0,86759.0,0.00984]
[1763958558402,0.56224298,86770.0,86759.0,0.00984]
[1763958558607,0.00025302,86779.0,86762.0,0.00984]
[1763958559012,0.00025302,86779.0,86762.0,0.01968]
[1763958559209,0.00025302,86779.0,86778.0,0.01968]
[1763958560639,0.00025302,86779.0,86778.0,0.03052]
[1763958560835,0.00025302,86779.0,86778.0,0.03152]
[1763958561624,0.00025302,86779.0,86778.0,0.02168]
[1763958563126,0.00025302,86779.0,86778.0,0.002]
[1763958563127,0.04458302,86779.0,86778.0,0.002]
[1763958563426,2.11416302,86779.0,86778.0,0.002]
[1763958564003,2.00025302,86779.0,86778.0,0.001]
[1763958564782,2.04458302,86779.0,86778.0,0.001]
[1763958564977,2.11416302,86779.0,86769.0,0.00984]
[1763958565196,2.0,86778.0,86769.0,0.00984]
[1763958568290,0.00025302,86779.0,86777.0,0.00984]
[1763958568291,0.562496,86779.0,86777.0,0.00984]
[1763958568490,0.00025302,86779.0,86778.0,0.00984]
[1763958569827,0.00025302,86779.0,86769.0,0.00984]
[1763958570037,0.562496,86779.0,86770.0,0.09696278]
[1763958570236,0.562496,86779.0,86769.0,0.00984]
[1763958570418,0.562496,86779.0,86775.0,0.09696278]
[1763958570635,0.562496,86779.0,86769.0,0.00984]
[1763958570636,0.00025302,86779.0,86769.0,0.00984]
[1763958570844,0.562496,86779.0,86769.0,0.00984]
[1763958571199,0.03341,86770.0,86769.0,0.00984]
[1763958571360,0.03341,86770.0,86740.0,0.00999999]
[1763958571361,0.03341,86770.0,86750.0,0.0045]
[1763958571713,0.63998298,86770.0,86752.0,0.01014628]
[1763958571888,0.03341,86770.0,86753.0,0.01330799]
[1763958572182,0.323,86775.0,86753.0,0.01780799]
[1763958572386,0.323,86775.0,86754.0,0.0045]
[1763958572612,0.323,86775.0,86755.0,0.01643137]
[1763958572784,0.323,86775.0,86756.0,0.01281585]
[1763958572987,0.56224298,86770.0,86756.0,0.01281585]
[1763958573404,2.0,86778.0,86757.0,0.01704112]
[1763958573607,0.001,86775.0,86757.0,0.02154112]
[1763958573809,0.001,86775.0,86757.0,0.01704112]
[1763958574016,0.323,86777.0,86758.0,0.01719378]
[1763958574375,0.001,86775.0,86759.0,0.0045]
[1763958574585,0.50025302,86779.0,86759.0,0.0045]
[1763958574792,0.50025302,86779.0,86758.0,0.01269378]
[1763958574793,2.0,86778.0,86758.0,0.01269378]
[1763958575135,0.001,86775.0,86759.0,0.0045]
[1763958575454,2.0,86777.0,86759.0,0.02755236]
[1763958575678,0.001,86775.0,86759.0,0.02755236]
[1763958575906,0.001,86775.0,86765.0,0.09696278]
[1763958576106,0.001,86775.0,86766.0,0.03550201]
[1763958576439,0.08755239,86778.0,86766.0,0.03550201]
[1763958576693,2.0,86777.0,86766.0,0.03550201]
[1763958576884,0.00025302,86779.0,86751.0,0.09708087]